[Event "Ruzomberok GM 2019"]
[Site "Ruzomberok"]
[Date "2019.07.02"]
[Round "4.5"]
[White "Nayhebaver, Martin"]
[Black "Pechac, Jergus"]
[Result "1-0"]
[ECO "C41"]
[WhiteElo "2473"]
[BlackElo "2473"]
[Annotator "ChessBase"]
[PlyCount "41"]
[EventDate "2019.06.29"]
[EventType "tourn"]
[EventCountry "SVK"]
[SourceTitle "playchess.com"]
[Source "ChessBase"]
[SourceQuality "1"]
[TimeControl "40/5400+30:1800+30"]

1. e4 {[%emt 0:00:27]} e5 {[%emt 0:00:00]} 2. Nf3 {[%emt 0:00:20]} d6 {[%emt 0:00:00]} 3. Bc4 {[%emt 0:01:39]} Nf6 {[%emt 0:00:00]} 4. Nc3 {[%emt 0:02:57]} Be7 {[%emt 0:01:06]} 5. h3 {[%emt 0:02:26]} O-O {[%emt 0:00:20]} 6. d3 {[%emt 0:00:26]} Nc6 {[%emt 0:01:33]} 7. a3 {[%emt 0:01:31]} Be6 {[%emt 0:00:53]} 8. Nd5 {[%emt 0:02:05]} Qd7 {[%emt 0:01:56]} 9. O-O {[%emt 0:04:26]} Bd8 {[%emt 0:03:21]} 10. Bg5 {[%emt 0:03:32]} Bxd5 {[%emt 0:00:22]} 11. exd5 {[%emt 0:00:26]} Ne7 {[%emt 0:00:07]} 12. Bxf6 {[%emt 0:03:27]} gxf6 {[%emt 0:00:06]} 13. Nh4 {[%emt 0:02:43]} Ng6 {[%emt 0:01:03]} 14. Qh5 {[%emt 0:00:51]} Kh8 {[%emt 0:03:24]} 15. d4 {[%emt 0:11:47]} e4 {[%emt 0:18:34]} 16. Nf5 {[%emt 0:10:39]} b5 {[%emt 0:04:13]} 17. Bb3 {[%emt 0:02:48]} Rg8 {[%emt 0:45:00]} 18. f4 {[%emt 0:01:50]} Ne7 {[%emt 0:08:42]} 19. Nh6 {[%emt 0:01:08]} Rg3 {[%emt 0:07:42]} 20. f5 {[%emt 0:03:15]} Ng8 {[%emt 0:01:06]} 21. Ng4 1-0

[Event "Ruzomberok GM 2019"]
[Site "Ruzomberok"]
[Date "2019.07.03"]
[Round "5.1"]
[White "Pechac, Jergus"]
[Black "Jurcik, Marian"]
[Result "1-0"]
[ECO "C11"]
[WhiteElo "2473"]
[BlackElo "2501"]
[Annotator "ChessBase"]
[PlyCount "47"]
[EventDate "2019.06.29"]
[EventType "tourn"]
[EventCountry "SVK"]
[SourceTitle "playchess.com"]
[Source "ChessBase"]
[SourceQuality "1"]
[TimeControl "40/5400+30:1800+30"]

1. d4 {[%emt 0:02:31]} e6 {[%emt 0:00:00]} 2. e4 {[%emt 0:00:30]} d5 {[%emt 0:00:00]} 3. Nc3 {[%emt 0:00:09]} Nf6 {[%emt 0:00:08]} 4. e5 {[%emt 0:00:18]} Nfd7 {[%emt 0:00:05]} 5. f4 {[%emt 0:00:05]} c5 {[%emt 0:00:14]} 6. Nf3 {[%emt 0:00:11]} Nc6 {[%emt 0:00:05]} 7. Be3 {[%emt 0:00:04]} cxd4 {[%emt 0:00:29]} 8. Nxd4 {[%emt 0:00:09]} Bc5 {[%emt 0:00:06]} 9. Qd2 {[%emt 0:00:46]} O-O {[%emt 0:00:40]} 10. O-O-O {[%emt 0:00:35]} Rb8 {[%emt 0:00:45]} 11. Bb5 {[%emt 0:08:08]} Bxd4 {[%emt 0:05:41]} 12. Bxd4 {[%emt 0:00:07]} Qa5 {[%emt 0:00:08]} 13. f5 {[%emt 0:17:29]} Nxd4 {[%emt 0:13:32]} 14. Qxd4 {[%emt 0:00:59]} exf5 {[%emt 0:01:04]} 15. g4 {[%emt 0:06:03]} Nb6 {[%emt 0:03:35]} 16. a4 {[%emt 0:01:38]} Na8 {[%emt 0:06:15]} 17. Nxd5 {[%emt 0:01:13]} Kh8 {[%emt 0:01:14]} 18. h4 {[%emt 0:08:54]} a6 {[%emt 0:21:20]} 19. h5 {[%emt 0:02:51]} Qd8 {[%emt 0:20:36]} 20. h6 {[%emt 0:01:45]} Qg5+ {[%emt 0:04:14]} 21. Kb1 {[%emt 0:00:08]} axb5 {[%emt 0:08:21]} 22. hxg7+ {[%emt 0:00:35]} Qxg7 {[%emt 0:01:02]} 23. Nf6 {[%emt 0:00:29]} fxg4 {[%emt 0:03:42]} 24. Qe4 {[%emt 0:00:23]} 1-0

[Event "Ruzomberok GM 2019"]
[Site "Ruzomberok"]
[Date "2019.07.03"]
[Round "5.2"]
[White "Manik, Mikulas"]
[Black "Nayhebaver, Martin"]
[Result "1/2-1/2"]
[ECO "B51"]
[WhiteElo "2399"]
[BlackElo "2473"]
[Annotator "ChessBase"]
[PlyCount "90"]
[EventDate "2019.06.29"]
[EventType "tourn"]
[EventCountry "SVK"]
[SourceTitle "playchess.com"]
[Source "ChessBase"]
[SourceQuality "1"]
[TimeControl "40/5400+30:1800+30"]

1. e4 {[%emt 0:00:00]} c5 {[%emt 0:00:00]} 2. Nf3 {[%emt 0:00:00]} d6 {[%emt 0:00:30]} 3. Bb5+ {[%emt 0:00:00]} Nd7 {[%emt 0:00:46]} 4. O-O {[%emt 0:00:00]} a6 {[%emt 0:00:31]} 5. Bxd7+ {[%emt 0:00:10]} Bxd7 {[%emt 0:00:08]} 6. d4 {[%emt 0:00:10]} cxd4 {[%emt 0:00:41]} 7. Qxd4 {[%emt 0:00:10]} e5 {[%emt 0:01:03]} 8. Qd3 {[%emt 0:00:17]} Rc8 {[%emt 0:00:56]} 9. c4 {[%emt 0:03:29]} Qc7 {[%emt 0:01:47]} 10. b3 {[%emt 0:00:56]} b5 {[%emt 0:00:49]} 11. Nbd2 {[%emt 0:06:27]} Qb7 {[%emt 0:02:31]} 12. Ba3 {[%emt 0:01:41]} b4 {[%emt 0:00:56]} 13. Bb2 {[%emt 0:00:08]} Nf6 {[%emt 0:02:19]} 14. a3 {[%emt 0:00:33]} a5 {[%emt 0:01:21]} 15. axb4 {[%emt 0:01:10]} axb4 {[%emt 0:00:04]} 16. Qe3 {[%emt 0:23:55]} Be7 {[%emt 0:06:21]} 17. Qa7 {[%emt 0:14:26]} Qxa7 {[%emt 0:02:32]} 18. Rxa7 {[%emt 0:00:16]} Bd8 {[%emt 0:00:09]} 19. Rfa1 {[%emt 0:01:14]} Bb6 {[%emt 0:01:03]} 20. R7a6 {[%emt 0:00:44]} Bc5 {[%emt 0:04:10]} 21. Ne1 {[%emt 0:00:51]} O-O {[%emt 0:02:24]} 22. Nd3 {[%emt 0:04:33]} Bc6 {[%emt 0:00:45]} 23. Nxc5 {[%emt 0:05:18]} dxc5 {[%emt 0:00:11]} 24. f3 {[%emt 0:00:12]} Nd7 {[%emt 0:03:04]} 25. Nf1 {[%emt 0:00:42]} f5 {[%emt 0:17:32]} 26. exf5 {[%emt 0:04:16]} Rxf5 {[%emt 0:00:22]} 27. Rd1 {[%emt 0:01:32]} Rf7 {[%emt 0:00:49]} 28. Rd6 {[%emt 0:08:53]} Nb8 {[%emt 0:03:08]} 29. Rb6 {[%emt 0:05:03]} Ba8 {[%emt 0:00:09]} 30. Ng3 {[%emt 0:02:00]} Nc6 {[%emt 0:04:51]} 31. Ne4 {[%emt 0:00:55]} Nd4 {[%emt 0:02:22]} 32. Nxc5 {[%emt 0:04:39]} Rxc5 {[%emt 0:01:07]} 33. Bxd4 {[%emt 0:00:27]} exd4 {[%emt 0:00:04]} 34. Rd8+ {[%emt 0:02:55]} Rf8 {[%emt 0:00:04]} 35. Rbb8 {[%emt 0:00:39]} Rxd8 {[%emt 0:00:22]} 36. Rxd8+ {[%emt 0:00:06]} Kf7 {[%emt 0:00:03]} 37. Rxa8 {[%emt 0:00:04]} Re5 {[%emt 0:00:16]} 38. Rd8 {[%emt 0:01:54]} Re3 {[%emt 0:00:18]} 39. Rxd4 {[%emt 0:00:07]} Rxb3 {[%emt 0:00:04]} 40. c5 {[%emt 0:00:07]} Rc3 {[%emt 0:00:26]} 41. Rxb4 {[%emt 0:30:04]} Rxc5 {[%emt 0:30:04]} 42. Rb7+ {[%emt 0:00:04]} Kf6 {[%emt 0:00:11]} 43. Kf2 {[%emt 0:00:03]} h5 {[%emt 0:02:23]} 44. h4 {[%emt 0:00:20]} Rc2+ {[%emt 0:00:28]} 45. Kg3 {[%emt 0:00:03]} g6 {[%emt 0:00:13]} 1/2-1/2

[Event "Ruzomberok GM 2019"]
[Site "Ruzomberok"]
[Date "2019.07.03"]
[Round "5.3"]
[White "Hrabusa, Matej"]
[Black "Druska, Juraj"]
[Result "0-1"]
[ECO "D02"]
[WhiteElo "2397"]
[BlackElo "2460"]
[Annotator "ChessBase"]
[PlyCount "96"]
[EventDate "2019.06.29"]
[EventType "tourn"]
[EventCountry "SVK"]
[SourceTitle "playchess.com"]
[Source "ChessBase"]
[SourceQuality "1"]
[TimeControl "40/5400+30:1800+30"]

1. d4 {[%emt 0:00:00]} d5 {[%emt 0:00:02]} 2. Nf3 {[%emt 0:00:00]} Nf6 {[%emt 0:00:35]} 3. g3 {[%emt 0:00:00]} b5 {[%emt 0:03:24]} 4. Bg2 {[%emt 0:00:25]} e6 {[%emt 0:00:07]} 5. O-O {[%emt 0:00:20]} Bb7 {[%emt 0:00:46]} 6. a4 {[%emt 0:02:16]} b4 {[%emt 0:00:26]} 7. c4 {[%emt 0:00:07]} bxc3 {[%emt 0:00:28]} 8. Nxc3 {[%emt 0:01:10]} Be7 {[%emt 0:14:58]} 9. Qc2 {[%emt 0:03:47]} O-O {[%emt 0:02:30]} 10. Bf4 {[%emt 0:05:39]} Na6 {[%emt 0:05:20]} 11. Ne5 {[%emt 0:10:38]} c5 {[%emt 0:08:57]} 12. dxc5 {[%emt 0:02:55]} Bxc5 {[%emt 0:02:06]} 13. a5 {[%emt 0:05:32]} Qe7 {[%emt 0:02:50]} 14. Qa4 {[%emt 0:07:21]} Rfc8 {[%emt 0:05:05]} 15. Rac1 {[%emt 0:07:00]} Nb4 {[%emt 0:05:36]} 16. Na2 {[%emt 0:03:54]} Nxa2 {[%emt 0:02:07]} 17. Qxa2 {[%emt 0:00:08]} Ba6 {[%emt 0:00:12]} 18. Bf3 {[%emt 0:16:11]} Qb7 {[%emt 0:11:30]} 19. Rc3 {[%emt 0:07:04]} Bd6 {[%emt 0:08:08]} 20. Rfc1 {[%emt 0:02:58]} Rxc3 {[%emt 0:11:21]} 21. Rxc3 {[%emt 0:00:10]} g5 {[%emt 0:00:10]} 22. Ng4 {[%emt 0:04:28]} gxf4 {[%emt 0:07:45]} 23. Nxf6+ {[%emt 0:00:09]} Kg7 {[%emt 0:00:19]} 24. Nh5+ {[%emt 0:02:45]} Kf8 {[%emt 0:02:22]} 25. Nxf4 {[%emt 0:03:15]} Rc8 {[%emt 0:01:10]} 26. Rxc8+ {[%emt 0:00:45]} Qxc8 {[%emt 0:00:01]} 27. Qb1 {[%emt 0:00:45]} Kg8 {[%emt 0:00:39]} 28. Nh5 {[%emt 0:01:06]} Be5 {[%emt 0:00:11]} 29. b4 {[%emt 0:00:51]} Bb5 {[%emt 0:00:16]} 30. Nf4 {[%emt 0:02:53]} Qc3 {[%emt 0:00:14]} 31. Nd3 {[%emt 0:01:03]} Bd6 {[%emt 0:01:59]} 32. Nc5 {[%emt 0:01:36]} a6 {[%emt 0:00:50]} 33. e3 {[%emt 0:02:03]} Bxc5 {[%emt 0:01:02]} 34. bxc5 {[%emt 0:00:05]} Qxc5 {[%emt 0:00:03]} 35. Qa1 {[%emt 0:00:40]} e5 {[%emt 0:00:22]} 36. Bg2 {[%emt 0:01:34]} d4 {[%emt 0:00:10]} 37. exd4 {[%emt 0:00:25]} exd4 {[%emt 0:00:05]} 38. Qd1 {[%emt 0:02:00]} d3 {[%emt 0:01:38]} 39. Be4 {[%emt 0:00:52]} Qc4 {[%emt 0:00:56]} 40. Qg4+ {[%emt 0:03:39]} Kf8 {[%emt 0:00:07]} 41. Qh4 {[%emt 0:02:48]} Qd4 {[%emt 0:05:40]} 42. Qh6+ {[%emt 0:07:55]} Ke8 {[%emt 0:00:53]} 43. Bc6+ {[%emt 0:03:10]} Bxc6 {[%emt 0:00:47]} 44. Qxc6+ {[%emt 0:00:05]} Ke7 {[%emt 0:00:50]} 45. Qf3 {[%emt 0:05:12]} d2 {[%emt 0:01:05]} 46. Qd1 {[%emt 0:00:04]} Kf8 {[%emt 0:01:22]} 47. Kg2 {[%emt 0:00:36]} Qe4+ {[%emt 0:00:11]} 48. Kf1 {[%emt 0:00:17]} Qc4+ {[%emt 0:00:09]} 0-1

[Event "Ruzomberok GM 2019"]
[Site "Ruzomberok"]
[Date "2019.07.03"]
[Round "5.4"]
[White "Petenyi, Tamas"]
[Black "Repka, Christopher"]
[Result "1/2-1/2"]
[ECO "C80"]
[WhiteElo "2412"]
[BlackElo "2482"]
[Annotator "ChessBase"]
[PlyCount "60"]
[EventDate "2019.06.29"]
[EventType "tourn"]
[EventCountry "SVK"]
[SourceTitle "playchess.com"]
[Source "ChessBase"]
[SourceQuality "1"]
[TimeControl "40/5400+30:1800+30"]

1. e4 {[%emt 0:04:19]} e5 {[%emt 0:00:00]} 2. Nf3 {[%emt 0:00:22]} Nc6 {[%emt 0:00:00]} 3. Bb5 {[%emt 0:00:38]} a6 {[%emt 0:00:00]} 4. Ba4 {[%emt 0:00:05]} Nf6 {[%emt 0:00:00]} 5. O-O {[%emt 0:01:53]} Nxe4 {[%emt 0:07:28]} 6. d4 {[%emt 0:00:34]} b5 {[%emt 0:00:18]} 7. Bb3 {[%emt 0:00:09]} d5 {[%emt 0:00:04]} 8. dxe5 {[%emt 0:00:23]} Be6 {[%emt 0:00:04]} 9. Be3 {[%emt 0:03:04]} Be7 {[%emt 0:01:01]} 10. Nbd2 {[%emt 0:00:43]} O-O {[%emt 0:00:06]} 11. c3 {[%emt 0:01:06]} Bg4 {[%emt 0:02:21]} 12. Nxe4 {[%emt 0:08:05]} dxe4 {[%emt 0:00:15]} 13. Qxd8 {[%emt 0:00:04]} Raxd8 {[%emt 0:03:37]} 14. Nd2 {[%emt 0:00:25]} Nxe5 {[%emt 0:00:04]} 15. Nxe4 {[%emt 0:01:36]} Nd3 {[%emt 0:00:03]} 16. f3 {[%emt 0:02:51]} Bf5 {[%emt 0:02:43]} 17. Rab1 {[%emt 0:00:42]} c5 {[%emt 0:02:10]} 18. Bc2 {[%emt 0:11:41]} c4 {[%emt 0:01:48]} 19. Rfd1 {[%emt 0:06:03]} Bxe4 {[%emt 0:23:31]} 20. fxe4 {[%emt 0:00:08]} Bc5 {[%emt 0:00:02]} 21. Bxc5 {[%emt 0:00:30]} Nxc5 {[%emt 0:00:04]} 22. Kf2 {[%emt 0:01:37]} Rfe8 {[%emt 0:02:21]} 23. Ke3 {[%emt 0:06:50]} Kf8 {[%emt 0:03:58]} 24. Rxd8 {[%emt 0:03:21]} Rxd8 {[%emt 0:00:11]} 25. Rf1 {[%emt 0:03:02]} g6 {[%emt 0:02:40]} 26. b3 {[%emt 0:04:14]} cxb3 {[%emt 0:01:11]} 27. axb3 {[%emt 0:08:48]} Ke7 {[%emt 0:00:05]} 28. b4 {[%emt 0:02:46]} Nd7 {[%emt 0:01:07]} 29. Bb3 {[%emt 0:01:57]} Ne5 {[%emt 0:00:17]} 30. Bd5 {[%emt 0:00:11]} Rd6 {[%emt 0:01:27]} 1/2-1/2

[Event "Ruzomberok GM 2019"]
[Site "Ruzomberok"]
[Date "2019.07.03"]
[Round "5.5"]
[White "Pacher, Milan"]
[Black "Mazur, Stefan"]
[Result "1/2-1/2"]
[ECO "E97"]
[WhiteElo "2434"]
[BlackElo "2426"]
[Annotator "NA"]
[PlyCount "66"]
[EventDate "2019.06.29"]
[EventType "tourn"]
[EventCountry "SVK"]
[SourceTitle "playchess.com"]
[Source "ChessBase"]
[SourceQuality "1"]
[TimeControl "40/5400+30:1800+30"]

1. d4 {[%emt 0:00:00]} Nf6 {[%emt 0:06:19]} 2. c4 {[%emt 0:00:00]} g6 {[%emt 0:00:05]} 3. Nc3 {[%emt 0:00:00]} Bg7 {[%emt 0:00:04]} 4. e4 {[%emt 0:00:00]} d6 {[%emt 0:00:08]} 5. Nf3 {[%emt 0:00:00]} O-O {[%emt 0:00:06]} 6. Be2 {[%emt 0:00:01]} e5 {[%emt 0:00:07]} 7. O-O {[%emt 0:00:06]} Nc6 {[%emt 0:00:13]} 8. dxe5 {[%emt 0:00:21]} dxe5 {[%emt 0:09:16]} 9. Bg5 {[%emt 0:00:16]} Qxd1 {[%emt 0:04:42]} 10. Rfxd1 {[%emt 0:00:03]} Bg4 {[%emt 0:00:16]} 11. h3 {[%emt 0:00:28]} Bxf3 {[%emt 0:00:08]} 12. Bxf3 {[%emt 0:00:04]} Nd4 {[%emt 0:00:11]} 13. Nd5 {[%emt 0:00:19]} Nxd5 {[%emt 0:00:38]} 14. cxd5 {[%emt 0:00:03]} c6 {[%emt 0:00:22]} 15. Rac1 {[%emt 0:00:34]} Rac8 {[%emt 0:04:28]} 16. Be3 {[%emt 0:14:30]} cxd5 {[%emt 0:16:40]} 17. exd5 {[%emt 0:00:41]} Rfd8 {[%emt 0:00:14]} 18. d6 {[%emt 0:06:35]} Rb8 {[%emt 0:08:32]} 19. Kf1 {[%emt 0:05:18]} Rxd6 {[%emt 0:06:41]} 20. Bxb7 {[%emt 0:01:08]} Rb6 {[%emt 0:10:57]} 21. Bd5 {[%emt 0:02:29]} Rb5 {[%emt 0:00:22]} 22. Bxd4 {[%emt 0:01:50]} exd4 {[%emt 0:00:31]} 23. Bb3 {[%emt 0:00:05]} R5b7 {[%emt 0:04:08]} 24. Ke2 {[%emt 0:05:38]} Bf6 {[%emt 0:02:41]} 25. Kd3 {[%emt 0:00:57]} Kg7 {[%emt 0:00:40]} 26. Re1 {[%emt 0:01:45]} a5 {[%emt 0:01:32]} 27. Rc4 {[%emt 0:00:34]} Rb4 {[%emt 0:00:19]} 28. Rc7 {[%emt 0:01:20]} Rxb3+ {[%emt 0:10:27]} 29. axb3 {[%emt 0:00:09]} Rxb3+ {[%emt 0:00:01]} 30. Kc2 {[%emt 0:00:32]} a4 {[%emt 0:00:01]} 31. Rd1 {[%emt 0:04:31]} d3+ {[%emt 0:00:23]} 32. Rxd3 {[%emt 0:00:05]} Rxb2+ {[%emt 0:00:03]} 33. Kd1 {[%emt 0:01:10]} Rxf2 {[%emt 0:00:38]} 1/2-1/2

[Event "Ruzomberok GM 2019"]
[Site "Ruzomberok"]
[Date "2019.07.04"]
[Round "6.1"]
[White "Jurcik, Marian"]
[Black "Mazur, Stefan"]
[Result "1-0"]
[ECO "E62"]
[WhiteElo "2501"]
[BlackElo "2426"]
[Annotator "RC"]
[PlyCount "79"]
[EventDate "2019.06.29"]
[EventType "tourn"]
[EventCountry "SVK"]
[SourceTitle "playchess.com"]
[Source "ChessBase"]
[SourceQuality "1"]
[TimeControl "40/5400+30:1800+30"]

1. d4 {[%emt 0:04:25]} Nf6 {[%emt 0:01:44]} 2. c4 {[%emt 0:00:09]} g6 {[%emt 0:00:23]} 3. Nc3 {[%emt 0:02:26]} Bg7 {[%emt 0:00:17]} 4. g3 {[%emt 0:00:53]} O-O {[%emt 0:00:14]} 5. Bg2 {[%emt 0:00:05]} d6 {[%emt 0:00:12]} 6. Nf3 {[%emt 0:00:23]} Nc6 {[%emt 0:03:54]} 7. O-O {[%emt 0:00:11]} e5 {[%emt 0:00:55]} 8. d5 {[%emt 0:05:33]} Nb8 {[%emt 0:00:15]} 9. e4 {[%emt 0:00:43]} a5 {[%emt 0:01:20]} 10. Ne1 {[%emt 0:00:25]} Na6 {[%emt 0:00:10]} 11. Nd3 {[%emt 0:00:27]} Nd7 {[%emt 0:02:58]} 12. Be3 {[%emt 0:01:28]} f5 {[%emt 0:00:27]} 13. exf5 {[%emt 0:02:10]} gxf5 {[%emt 0:02:29]} 14. f4 {[%emt 0:00:32]} e4 {[%emt 0:13:41]} 15. Nf2 {[%emt 0:01:00]} Bxc3 {[%emt 0:04:09]} 16. bxc3 {[%emt 0:00:02]} Nf6 {[%emt 0:00:09]} 17. Bd4 {[%emt 0:02:07]} Nc5 {[%emt 0:02:12]} 18. Kh1 {[%emt 0:00:31]} Qe7 {[%emt 0:07:47]} 19. Qe2 {[%emt 0:02:14]} b6 {[%emt 0:05:33]} 20. Rg1 {[%emt 0:02:47]} Bd7 {[%emt 0:03:48]} 21. Rae1 {[%emt 0:24:56]} Rae8 {[%emt 0:01:58]} 22. Bh3 {[%emt 0:08:43]} h5 {[%emt 0:14:34]} 23. Bxf6 {[%emt 0:23:02]} Qxf6 {[%emt 0:00:26]} 24. Qxh5 {[%emt 0:00:20]} Re7 {[%emt 0:03:36]} 25. g4 {[%emt 0:00:38]} Rh7 {[%emt 0:00:20]} 26. gxf5+ {[%emt 0:00:47]} Kh8 {[%emt 0:00:06]} 27. Qe2 {[%emt 0:05:31]} Bxf5 {[%emt 0:04:36]} 28. Bxf5 {[%emt 0:01:08]} Qxf5 {[%emt 0:00:10]} 29. Rg4 {[%emt 0:01:11]} Qh5 {[%emt 0:09:07]} 30. Nd1 {[%emt 0:00:36]} Nd3 {[%emt 0:01:15]} 31. Reg1 {[%emt 0:00:22]} Rg7 {[%emt 0:06:55]} 32. Ne3 {[%emt 0:09:14]} Nxf4 {[%emt 0:09:12]} 33. Qf2 {[%emt 0:00:53]} Ng6 {[%emt 0:00:31]} 34. Qg2 {[%emt 0:00:30]} Nh4 {[%emt 0:00:16]} 35. Qh3 {[%emt 0:00:27]} Rh7 {[%emt 0:00:21]} 36. Qg3 {[%emt 0:00:26]} Ng6 {[%emt 0:01:24]} 37. Rxg6 {[%emt 0:00:02]} Qf3+ {[%emt 0:00:07]} 38. Rg2 {[%emt 0:00:38]} Qf7 {[%emt 0:00:43]} 39. Nf5 {[%emt 0:00:44]} Rh5 {[%emt 0:00:14]} 40. Rg5 {[%emt 0:00:40]} 1-0

[Event "Ruzomberok GM 2019"]
[Site "Ruzomberok"]
[Date "2019.07.04"]
[Round "6.2"]
[White "Repka, Christopher"]
[Black "Pacher, Milan"]
[Result "0-1"]
[ECO "E47"]
[WhiteElo "2482"]
[BlackElo "2434"]
[Annotator "ChessBase"]
[PlyCount "66"]
[EventDate "2019.06.29"]
[EventType "tourn"]
[EventCountry "SVK"]
[SourceTitle "playchess.com"]
[Source "ChessBase"]
[SourceQuality "1"]
[TimeControl "40/5400+30:1800+30"]

1. d4 {[%emt 0:01:24]} Nf6 {[%emt 0:00:00]} 2. c4 {[%emt 0:00:10]} e6 {[%emt 0:00:00]} 3. Nc3 {[%emt 0:00:02]} Bb4 {[%emt 0:00:00]} 4. e3 {[%emt 0:00:05]} O-O {[%emt 0:00:13]} 5. Bd3 {[%emt 0:01:14]} c5 {[%emt 0:00:07]} 6. Nf3 {[%emt 0:00:04]} d5 {[%emt 0:00:28]} 7. O-O {[%emt 0:00:06]} cxd4 {[%emt 0:00:43]} 8. exd4 {[%emt 0:00:04]} dxc4 {[%emt 0:00:05]} 9. Bxc4 {[%emt 0:00:03]} b6 {[%emt 0:00:28]} 10. Bg5 {[%emt 0:00:05]} Bb7 {[%emt 0:00:40]} 11. Rc1 {[%emt 0:00:04]} Nbd7 {[%emt 0:01:05]} 12. a3 {[%emt 0:00:06]} Bxc3 {[%emt 0:01:27]} 13. Rxc3 {[%emt 0:00:06]} Qb8 {[%emt 0:04:45]} 14. Re1 {[%emt 0:04:55]} Ne4 {[%emt 0:06:48]} 15. Rce3 {[%emt 0:00:37]} Nxg5 {[%emt 0:00:12]} 16. Nxg5 {[%emt 0:00:20]} Qf4 {[%emt 0:01:04]} 17. Rg3 {[%emt 0:01:56]} Rac8 {[%emt 0:06:17]} 18. Rg4 {[%emt 0:07:49]} Qf6 {[%emt 0:09:53]} 19. Bd3 {[%emt 0:00:14]} g6 {[%emt 0:00:24]} 20. h4 {[%emt 0:00:11]} Rfe8 {[%emt 0:14:43]} 21. Qd2 {[%emt 0:04:42]} e5 {[%emt 0:01:30]} 22. Be4 {[%emt 0:12:31]} Bxe4 {[%emt 0:11:24]} 23. Rgxe4 {[%emt 0:00:53]} Red8 {[%emt 0:05:24]} 24. Qb4 {[%emt 0:11:55]} a5 {[%emt 0:16:00]} 25. Qb5 {[%emt 0:07:10]} exd4 {[%emt 0:01:37]} 26. g3 {[%emt 0:02:00]} d3 {[%emt 0:07:33]} 27. Rd1 {[%emt 0:00:28]} Nc5 {[%emt 0:00:34]} 28. Rf4 {[%emt 0:00:17]} Qc6 {[%emt 0:00:31]} 29. Qxc6 {[%emt 0:06:43]} Rxc6 {[%emt 0:00:02]} 30. Nxf7 {[%emt 0:00:06]} Rd5 {[%emt 0:00:29]} 31. g4 {[%emt 0:00:25]} d2 {[%emt 0:03:15]} 32. g5 {[%emt 0:00:14]} Ne6 {[%emt 0:01:06]} 33. Nh6+ {[%emt 0:01:00]} Kh8 {[%emt 0:00:02]} 0-1

[Event "Ruzomberok GM 2019"]
[Site "Ruzomberok"]
[Date "2019.07.04"]
[Round "6.3"]
[White "Druska, Juraj"]
[Black "Petenyi, Tamas"]
[Result "1-0"]
[ECO "B32"]
[WhiteElo "2460"]
[BlackElo "2412"]
[Annotator "ChessBase"]
[PlyCount "97"]
[EventDate "2019.06.29"]
[EventType "tourn"]
[EventCountry "SVK"]
[SourceTitle "playchess.com"]
[Source "ChessBase"]
[SourceQuality "1"]
[TimeControl "40/5400+30:1800+30"]

1. e4 {[%emt 0:04:04]} c5 {[%emt 0:02:35]} 2. Nf3 {[%emt 0:00:10]} Nc6 {[%emt 0:00:10]} 3. d4 {[%emt 0:01:13]} cxd4 {[%emt 0:00:08]} 4. Nxd4 {[%emt 0:00:02]} Qb6 {[%emt 0:00:13]} 5. Nb3 {[%emt 0:00:06]} Nf6 {[%emt 0:00:10]} 6. Nc3 {[%emt 0:00:06]} e6 {[%emt 0:00:18]} 7. Qe2 {[%emt 0:00:07]} Bb4 {[%emt 0:01:52]} 8. Bd2 {[%emt 0:00:07]} O-O {[%emt 0:00:21]} 9. a3 {[%emt 0:00:24]} Be7 {[%emt 0:00:26]} 10. O-O-O {[%emt 0:00:24]} d5 {[%emt 0:00:55]} 11. Be3 {[%emt 0:12:40]} Qc7 {[%emt 0:00:48]} 12. exd5 {[%emt 0:01:01]} Nxd5 {[%emt 0:04:24]} 13. Nxd5 {[%emt 0:00:18]} exd5 {[%emt 0:00:01]} 14. Kb1 {[%emt 0:17:05]} Bf6 {[%emt 0:13:37]} 15. Qd2 {[%emt 0:16:05]} Bf5 {[%emt 0:08:48]} 16. Bd3 {[%emt 0:03:16]} Bxd3 {[%emt 0:06:25]} 17. Qxd3 {[%emt 0:00:14]} Rfd8 {[%emt 0:02:22]} 18. f4 {[%emt 0:00:28]} Rac8 {[%emt 0:08:22]} 19. g4 {[%emt 0:02:36]} g6 {[%emt 0:01:49]} 20. h4 {[%emt 0:02:09]} d4 {[%emt 0:00:42]} 21. Bc1 {[%emt 0:02:13]} Ne7 {[%emt 0:01:55]} 22. h5 {[%emt 0:01:58]} Nd5 {[%emt 0:05:21]} 23. hxg6 {[%emt 0:02:31]} hxg6 {[%emt 0:02:35]} 24. f5 {[%emt 0:22:36]} g5 {[%emt 0:02:12]} 25. Rh6 {[%emt 0:00:06]} Bg7 {[%emt 0:03:36]} 26. Rh5 {[%emt 0:01:49]} Ne3 {[%emt 0:05:28]} 27. Rdh1 {[%emt 0:01:14]} Bf6 {[%emt 0:01:45]} 28. Rh6 {[%emt 0:01:56]} Qe5 {[%emt 0:06:35]} 29. Nd2 {[%emt 0:01:18]} Nxg4 {[%emt 0:05:10]} 30. Nf3 {[%emt 0:00:19]} Qd5 {[%emt 0:01:52]} 31. Nxg5 {[%emt 0:02:51]} Nxh6 {[%emt 0:05:12]} 32. Rxh6 {[%emt 0:00:01]} Rc6 {[%emt 0:00:53]} 33. Ne6 {[%emt 0:01:30]} fxe6 {[%emt 0:02:47]} 34. Rxf6 {[%emt 0:00:55]} Kg7 {[%emt 0:01:13]} 35. Rg6+ {[%emt 0:00:42]} Kf7 {[%emt 0:00:01]} 36. Qh3 {[%emt 0:00:17]} Rf8 {[%emt 0:00:54]} 37. Qh7+ {[%emt 0:02:25]} Ke8 {[%emt 0:00:01]} 38. f6 {[%emt 0:00:37]} Qc5 {[%emt 0:01:12]} 39. Rg8 {[%emt 0:00:29]} d3 {[%emt 0:02:55]} 40. f7+ {[%emt 0:00:56]} Kd7 {[%emt 0:01:19]} 41. Qxd3+ {[%emt 0:00:42]} Rd6 {[%emt 0:03:13]} 42. Qf3 {[%emt 0:10:36]} Rc6 {[%emt 0:03:40]} 43. Rxf8 {[%emt 0:00:46]} Qxc2+ {[%emt 0:01:21]} 44. Ka2 {[%emt 0:00:21]} Qc4+ {[%emt 0:00:28]} 45. Qb3 {[%emt 0:00:32]} Qxb3+ {[%emt 0:02:38]} 46. Kxb3 {[%emt 0:00:02]} Ke7 {[%emt 0:00:07]} 47. Rb8 {[%emt 0:01:13]} Rb6+ {[%emt 0:00:13]} 48. Ka2 {[%emt 0:00:47]} Kxf7 {[%emt 0:00:12]} 49. Be3 {[%emt 0:00:06]} 1-0